[Event "Gibraltar Masters 18th"]
[Site "Gibraltar"]
[Date "2020.01.23"]
[Round "3.36"]
[White "Lalith, Babu M R"]
[Black "Krishna, C R G."]
[Result "1-0"]
[ECO "D15"]
[WhiteElo "2558"]
[BlackElo "2436"]
[PlyCount "95"]
[EventDate "2020.01.21"]
[EventType "swiss"]
[EventRounds "10"]
[EventCountry "GGB"]
[SourceTitle "BritBase"]
[Source "John Saunders"]
[SourceDate "2021.06.05"]
[SourceVersion "1"]
[SourceVersionDate "2021.06.05"]
[SourceQuality "1"]
[TimeControl "40/100:0"]
[WhiteClock "1:01:40"]
[BlackClock "0:02:30"]

1. Nf3 {[%emt 0:00:00]} d5 {[%emt 0:00:00]} 2. d4 {[%emt 0:00:00]} Nf6 {
[%emt 0:00:00]} 3. c4 {[%emt 0:00:00]} c6 {[%emt 0:00:00]} 4. Nc3 {[%emt 0:00:
00]} a6 {[%emt 0:00:00]} 5. e3 {[%emt 0:00:00]} Bf5 {[%emt 0:00:00]} 6. Nh4 {
[%emt 0:00:00]} Bg4 {[%emt 0:00:00]} 7. Qc2 {[%emt 0:00:00]} e6 {[%emt 0:00:00]
} 8. h3 {[%emt 0:00:00]} Bh5 {[%emt 0:00:00]} 9. g4 {[%emt 0:00:00]} Bg6 {
[%emt 0:00:00]} 10. Nxg6 {[%emt 0:00:00]} hxg6 {[%emt 0:00:00]} 11. g5 {
[%emt 0:00:00]} Ng8 {[%emt 0:00:00]} 12. Bd2 {[%emt 0:00:00]} Ne7 {[%emt 0:00:
00]} 13. Qb3 {[%emt 0:00:00]} Ra7 {[%emt 0:00:00]} 14. Qa4 {[%emt 0:00:00]} Nf5
15. cxd5 exd5 16. Bd3 Be7 17. Qc2 Qd7 18. Na4 Bxg5 19. O-O-O b5 20. Nc5 Qc8 21.
Kb1 Bf6 22. Rde1 Kf8 23. Nb3 Kg8 24. e4 dxe4 25. Rxe4 Re7 26. d5 Rxe4 {[%emt 0:
00:00]} 27. Bxe4 Nd6 28. Bg2 {[%emt 0:00:00]} Nc4 {[%emt 0:00:00]} 29. Bc1 {
[%emt 0:00:00]} cxd5 {[%emt 0:00:00]} 30. Bxd5 {[%emt 0:00:00]} Rh5 {[%emt 0:
00:00]} 31. Rd1 {[%emt 0:00:00]} Nc6 {[%emt 0:00:00]} 32. Bxc4 {[%emt 0:00:00]}
bxc4 {[%emt 0:00:00]} 33. Qxc4 {[%emt 0:00:00]} Rxh3 {[%emt 0:00:00]} 34. Ka1 {
[%emt 0:00:00]} Rh4 {[%emt 0:00:00]} 35. f4 {[%emt 0:00:00]} Qb7 {[%emt 0:00:
43]} 36. Qe4 {[%emt 0:00:00]} Qb5 {[%emt 0:00:21]} 37. Rd5 {[%emt 0:00:00]} Qb7
{[%emt 0:00:03]} 38. Rd6 {[%emt 0:00:00]} Na5 {[%emt 0:00:01]} 39. Qxb7 {
[%emt 0:00:00]} Nxb7 {[%emt 0:00:00]} 40. Rxa6 {[%emt 0:00:00]} Nd8 {[%emt 0:
00:00]} 41. a4 {[%emt 0:00:00]} Ne6 {[%emt 0:00:00]} 42. a5 {[%emt 0:00:00]}
Nxf4 {[%emt 0:00:00]} 43. Rd6 {[%emt 0:00:00]} Ne6 {[%emt 0:00:00]} 44. Kb1 {
[%emt 0:00:00]} Ra4 {[%emt 0:00:00]} 45. Bd2 {[%emt 0:00:00]} g5 {[%emt 0:00:
00]} 46. a6 {[%emt 0:00:00]} g4 {[%emt 0:00:06]} 47. Ba5 {[%emt 0:00:00]} g3 {
[%emt 0:00:00]} 48. Rxe6 {[%emt 0:00:00]} 1-0

[Event "Gibraltar Masters 18th"]
[Site "Gibraltar"]
[Date "2020.01.23"]
[Round "3.37"]
[White "Low, Zhen Yu Cyrus"]
[Black "Maze, Sebastien"]
[Result "0-1"]
[ECO "C54"]
[WhiteElo "2415"]
[BlackElo "2550"]
[PlyCount "180"]
[EventDate "2020.01.21"]
[EventType "swiss"]
[EventRounds "10"]
[EventCountry "GGB"]
[SourceTitle "BritBase"]
[Source "John Saunders"]
[SourceDate "2021.06.05"]
[SourceVersion "1"]
[SourceVersionDate "2021.06.05"]
[SourceQuality "1"]
[TimeControl "40/100:0"]
[WhiteClock "0:16:37"]
[BlackClock "0:04:11"]

1. e4 {[%emt 0:00:00]} e5 {[%emt 0:00:00]} 2. Nf3 {[%emt 0:00:00]} Nc6 {
[%emt 0:00:00]} 3. Bc4 {[%emt 0:00:00]} Bc5 {[%emt 0:00:00]} 4. c3 {[%emt 0:00:
00]} Nf6 {[%emt 0:00:00]} 5. d4 {[%emt 0:00:00]} exd4 {[%emt 0:00:00]} 6. e5 {
[%emt 0:00:00]} d5 {[%emt 0:00:00]} 7. Bb5 {[%emt 0:00:00]} Ne4 {[%emt 0:00:00]
} 8. cxd4 {[%emt 0:00:00]} Bb6 {[%emt 0:00:00]} 9. Nc3 {[%emt 0:00:00]} O-O {
[%emt 0:00:00]} 10. Be3 {[%emt 0:00:00]} Ba5 {[%emt 0:00:00]} 11. Qb3 {[%emt 0:
00:00]} Bg4 {[%emt 0:00:00]} 12. h3 {[%emt 0:00:00]} Bh5 {[%emt 0:00:00]} 13.
O-O {[%emt 0:00:00]} Bxf3 {[%emt 0:00:00]} 14. gxf3 {[%emt 0:00:00]} Ng5 {
[%emt 0:00:00]} 15. Kg2 {[%emt 0:00:00]} Ne6 {[%emt 0:00:00]} 16. Ne2 {[%emt 0:
00:00]} Ne7 {[%emt 0:00:00]} 17. Bd3 {[%emt 0:00:00]} Bb6 {[%emt 0:00:00]} 18.
Qc2 {[%emt 0:00:00]} Ng6 {[%emt 0:00:00]} 19. Kh2 Nh4 20. f4 f5 21. f3 Qe8 22.
Ng1 Qh5 23. Qf2 c6 24. b4 Kh8 25. Ne2 a6 26. a4 Rg8 27. Ng3 {[%emt 0:00:00]}
Rgf8 28. Ne2 Rg8 {[%emt 0:00:00]} 29. Ng3 {[%emt 0:00:00]} Qf7 {[%emt 0:00:00]}
30. Ne2 {[%emt 0:00:00]} Bd8 {[%emt 0:00:00]} 31. b5 {[%emt 0:00:00]} axb5 {
[%emt 0:00:00]} 32. axb5 {[%emt 0:00:00]} Rxa1 {[%emt 0:00:00]} 33. Rxa1 {
[%emt 0:00:00]} Qh5 {[%emt 0:00:00]} 34. Ng3 {[%emt 0:00:00]} Nxf3+ {[%emt 0:
00:00]} 35. Kg2 {[%emt 0:00:00]} Nh4+ {[%emt 0:00:00]} 36. Kf1 {[%emt 0:00:00]}
Qf7 {[%emt 0:00:00]} 37. bxc6 {[%emt 0:00:00]} bxc6 {[%emt 0:00:00]} 38. Rc1 {
[%emt 0:00:00]} g5 {[%emt 0:00:00]} 39. Rxc6 {[%emt 0:00:00]} gxf4 {[%emt 0:00:
00]} 40. Bxf4 {[%emt 0:00:00]} Nxf4 {[%emt 0:00:00]} 41. Qxf4 {[%emt 0:00:00]}
Bg5 {[%emt 0:00:00]} 42. e6 {[%emt 0:00:42]} Qg7 {[%emt 0:00:00]} 43. Qf2 {
[%emt 0:00:00]} Be7 {[%emt 0:00:00]} 44. Nh5 {[%emt 0:00:00]} Qg5 {[%emt 0:00:
00]} 45. Nf4 {[%emt 0:00:00]} Ng6 {[%emt 0:00:00]} 46. Nxg6+ {[%emt 0:00:00]}
hxg6 {[%emt 0:00:00]} 47. Rc2 {[%emt 0:00:00]} Ra8 {[%emt 0:00:00]} 48. Ra2 {
[%emt 0:00:00]} Rxa2 {[%emt 0:00:00]} 49. Qxa2 {[%emt 0:00:00]} Qe3 {[%emt 0:
00:00]} 50. Qe2 {[%emt 0:00:00]} Qxh3+ {[%emt 0:00:00]} 51. Ke1 {[%emt 0:00:00]
} Qg3+ {[%emt 0:00:00]} 52. Kd2 {[%emt 0:00:00]} Bg5+ {[%emt 0:00:00]} 53. Kc3
{[%emt 0:00:00]} Qc7+ {[%emt 0:00:00]} 54. Kb3 {[%emt 0:00:00]} Qb6+ {[%emt 0:
00:00]} 55. Bb5 {[%emt 0:00:00]} Kg8 {[%emt 0:00:00]} 56. Kc3 {[%emt 0:00:00]}
Kf8 {[%emt 0:00:23]} 57. Bd7 {[%emt 0:00:00]} Qc7+ {[%emt 0:00:43]} 58. Kb3 {
[%emt 0:00:00]} Qb6+ {[%emt 0:00:09]} 59. Kc3 {[%emt 0:00:00]} Bf6 {[%emt 0:00:
00]} 60. Qe3 {[%emt 0:00:00]} Ke7 {[%emt 0:00:00]} 61. Kd3 {[%emt 0:00:00]}
Qa6+ {[%emt 0:00:00]} 62. Kd2 {[%emt 0:00:00]} Qa2+ {[%emt 0:00:00]} 63. Kd1 {
[%emt 0:00:00]} Qb1+ {[%emt 0:00:00]} 64. Ke2 {[%emt 0:00:00]} Qc2+ {[%emt 0:
00:00]} 65. Kf3 {[%emt 0:00:00]} Qb2 {[%emt 0:00:00]} 66. Kg3 {[%emt 0:00:00]}
Qa1 {[%emt 0:00:00]} 67. Kg2 {[%emt 0:00:00]} Qa2+ {[%emt 0:00:00]} 68. Kg3 {
[%emt 0:00:00]} Qb2 {[%emt 0:00:00]} 69. Kf3 {[%emt 0:00:00]} Qb4 {[%emt 0:01:
07]} 70. Kg2 {[%emt 0:00:00]} Kd8 {[%emt 0:00:10]} 71. Qc1 {[%emt 0:00:00]} Ke7
{[%emt 0:00:00]} 72. Qe3 {[%emt 0:00:00]} Qb2+ {[%emt 0:00:00]} 73. Kf3 {
[%emt 0:00:00]} Bh4 {[%emt 0:00:00]} 74. Qg1 {[%emt 0:00:00]} Qc2 {[%emt 0:00:
13]} 75. Qe3 {[%emt 0:00:00]} Qe4+ {[%emt 0:00:00]} 76. Qxe4 {[%emt 0:00:00]}
dxe4+ {[%emt 0:00:00]} 77. Kf4 {[%emt 0:00:00]} Kf6 {[%emt 0:00:00]} 78. Ke3 {
[%emt 0:00:00]} Bg5+ {[%emt 0:00:00]} 79. Ke2 {[%emt 0:00:00]} Bc1 {[%emt 0:00:
00]} 80. Bc8 {[%emt 0:00:00]} Ba3 {[%emt 0:00:00]} 81. Ke3 {[%emt 0:00:00]} g5
{[%emt 0:00:15]} 82. Bd7 {[%emt 0:00:00]} g4 {[%emt 0:00:00]} 83. Kf4 {[%emt 0:
00:00]} Bc1+ {[%emt 0:00:00]} 84. Kg3 {[%emt 0:00:00]} Ba3 {[%emt 0:00:00]} 85.
Kf4 {[%emt 0:00:00]} Bd6+ {[%emt 0:00:00]} 86. Ke3 {[%emt 0:00:00]} g3 {
[%emt 0:00:00]} 87. Bc8 {[%emt 0:00:00]} f4+ {[%emt 0:00:00]} 88. Ke2 {[%emt 0:
00:00]} f3+ {[%emt 0:00:00]} 89. Kf1 {[%emt 0:00:00]} g2+ {[%emt 0:00:00]} 90.
Kg1 {[%emt 0:00:00]} Bf4 {[%emt 0:00:00]} 0-1

[Event "Gibraltar Masters 18th"]
[Site "Gibraltar"]
[Date "2020.01.23"]
[Round "3.38"]
[White "Haug, Johannes"]
[Black "Ali Marandi, Cemil Can"]
[Result "0-1"]
[ECO "D46"]
[WhiteElo "2407"]
[BlackElo "2546"]
[PlyCount "82"]
[EventDate "2020.01.21"]
[EventType "swiss"]
[EventRounds "10"]
[EventCountry "GGB"]
[SourceTitle "BritBase"]
[Source "John Saunders"]
[SourceDate "2021.06.05"]
[SourceVersion "1"]
[SourceVersionDate "2021.06.05"]
[SourceQuality "1"]
[TimeControl "40/100:0"]
[WhiteClock "0:02:24"]
[BlackClock "0:27:57"]

1. d4 {[%emt 0:00:00]} Nf6 {[%emt 0:00:00]} 2. c4 {[%emt 0:00:00]} e6 {[%emt 0:
00:00]} 3. Nf3 {[%emt 0:00:00]} d5 {[%emt 0:00:00]} 4. Nc3 {[%emt 0:00:00]} c6
{[%emt 0:00:00]} 5. e3 {[%emt 0:00:00]} Nbd7 {[%emt 0:00:00]} 6. Qc2 {[%emt 0:
00:00]} Bd6 {[%emt 0:00:00]} 7. Bd3 {[%emt 0:00:00]} O-O {[%emt 0:00:00]} 8.
O-O {[%emt 0:00:00]} Re8 {[%emt 0:00:00]} 9. b3 {[%emt 0:00:00]} Qe7 {[%emt 0:
00:00]} 10. Bb2 {[%emt 0:00:00]} e5 {[%emt 0:00:00]} 11. dxe5 {[%emt 0:00:00]}
Nxe5 {[%emt 0:00:00]} 12. Nxe5 {[%emt 0:00:00]} Qxe5 {[%emt 0:00:00]} 13. g3 {
[%emt 0:00:00]} dxc4 {[%emt 0:00:00]} 14. bxc4 {[%emt 0:00:00]} Qh5 {[%emt 0:
00:00]} 15. Ne4 {[%emt 0:00:00]} Ng4 16. h4 Be5 17. Bd4 c5 18. Nxc5 b6 19. Be4
Bxd4 20. exd4 bxc5 21. Bxa8 Bf5 22. Qd2 Rxa8 23. Rfe1 Nf6 24. dxc5 Bd7 25. Qd6
Rc8 26. Rab1 h6 27. Rb8 Rxb8 28. Qxb8+ Kh7 29. Qd6 {[%emt 0:00:00]} Qf5 {
[%emt 0:00:00]} 30. c6 {[%emt 0:00:00]} Bc8 {[%emt 0:00:00]} 31. Re2 {[%emt 0:
01:08]} Qb1+ {[%emt 0:00:00]} 32. Kg2 {[%emt 0:00:00]} Bh3+ {[%emt 0:00:00]}
33. Kh2 {[%emt 0:00:00]} Qf1 {[%emt 0:00:00]} 34. Qd3+ {[%emt 0:00:00]} g6 {
[%emt 0:00:00]} 35. f3 {[%emt 0:00:00]} Bg2 {[%emt 0:00:00]} 36. g4 {[%emt 0:
00:00]} Bxf3 {[%emt 0:00:00]} 37. Rd2 {[%emt 0:00:00]} Qh1+ {[%emt 0:00:00]}
38. Kg3 {[%emt 0:00:00]} Ne4+ {[%emt 0:00:00]} 39. Kf4 {[%emt 0:00:00]} Nxd2 {
[%emt 0:00:00]} 40. Qd7 {[%emt 0:00:00]} Qh2+ {[%emt 0:00:00]} 41. Ke3 {
[%emt 0:00:00]} Qe2+ {[%emt 0:00:00]} 0-1

[Event "Gibraltar Masters 18th"]
[Site "Gibraltar"]
[Date "2020.01.23"]
[Round "3.39"]
[White "Buksa, Nataliya"]
[Black "Studer, Noel"]
[Result "1-0"]
[ECO "B33"]
[WhiteElo "2403"]
[BlackElo "2546"]
[PlyCount "107"]
[EventDate "2020.01.21"]
[EventType "swiss"]
[EventRounds "10"]
[EventCountry "GGB"]
[SourceTitle "BritBase"]
[Source "John Saunders"]
[SourceDate "2021.06.05"]
[SourceVersion "1"]
[SourceVersionDate "2021.06.05"]
[SourceQuality "1"]
[TimeControl "40/100:0"]
[WhiteClock "0:54:10"]
[BlackClock "0:52:37"]

1. e4 {[%emt 0:00:00]} c5 {[%emt 0:00:00]} 2. Nf3 {[%emt 0:00:00]} Nc6 {
[%emt 0:00:00]} 3. d4 {[%emt 0:00:00]} cxd4 {[%emt 0:00:00]} 4. Nxd4 {[%emt 0:
00:00]} Nf6 {[%emt 0:00:00]} 5. Nc3 {[%emt 0:00:00]} e5 {[%emt 0:00:00]} 6.
Ndb5 {[%emt 0:00:00]} d6 {[%emt 0:00:00]} 7. Bg5 {[%emt 0:00:00]} a6 {[%emt 0:
00:00]} 8. Na3 {[%emt 0:00:00]} b5 {[%emt 0:00:00]} 9. Bxf6 {[%emt 0:00:00]}
gxf6 {[%emt 0:00:00]} 10. Nd5 {[%emt 0:00:00]} f5 {[%emt 0:00:00]} 11. Bd3 {
[%emt 0:00:00]} Be6 {[%emt 0:00:00]} 12. c3 {[%emt 0:00:00]} Bg7 {[%emt 0:00:
00]} 13. Nc2 {[%emt 0:00:00]} O-O {[%emt 0:00:00]} 14. Nce3 {[%emt 0:00:00]}
fxe4 {[%emt 0:00:00]} 15. Bxe4 {[%emt 0:00:00]} f5 {[%emt 0:00:00]} 16. Bc2 {
[%emt 0:00:00]} f4 {[%emt 0:00:00]} 17. Qh5 {[%emt 0:00:00]} Rf7 {[%emt 0:00:
00]} 18. Bxh7+ {[%emt 0:00:00]} Kf8 {[%emt 0:00:00]} 19. Bf5 {[%emt 0:00:00]}
Qe8 {[%emt 0:00:00]} 20. Bxe6 {[%emt 0:00:00]} Qxe6 {[%emt 0:00:00]} 21. Qg4 {
[%emt 0:00:02]} Nd8 22. Qxe6 Nxe6 23. Ng4 Nc5 24. Ke2 e4 25. f3 Re8 26. Nf2 b4
27. cxb4 exf3+ 28. Kxf3 Ne6 29. Nd3 Nd4+ 30. Kg4 Be5 31. N3xf4 Rg7+ 32. Kh3
Rh7+ 33. Kg3 Rg7+ 34. Kh3 Rh7+ 35. Kg3 Rg7+ 36. Kh4 Nf5+ 37. Kh3 Bxb2 38. Rae1
Be5 39. g3 Kf7 40. Rhf1 Rh8+ 41. Kg2 Nh4+ 42. Kg1 Kg8 43. Ne6 Bxg3 44. Rf8+ Kh7
45. Rxh8+ Kxh8 46. hxg3 Rxg3+ 47. Kf2 Rg2+ 48. Ke3 Kg8 49. Rf1 Ng6 50. Rf6 Ne5
51. Rf8+ Kh7 52. Nf6+ Kg6 53. Nf4+ Kg7 54. Rg8+ {[%emt 0:00:00]} 1-0

[Event "Gibraltar Masters 18th"]
[Site "Gibraltar"]
[Date "2020.01.23"]
[Round "3.40"]
[White "Gschnitzer, Adrian"]
[Black "Gukesh, Dommaraju"]
[Result "1/2-1/2"]
[ECO "B09"]
[WhiteElo "2388"]
[BlackElo "2542"]
[PlyCount "108"]
[EventDate "2020.01.21"]
[EventType "swiss"]
[EventRounds "10"]
[EventCountry "GGB"]
[SourceTitle "BritBase"]
[Source "John Saunders"]
[SourceDate "2021.06.05"]
[SourceVersion "1"]
[SourceVersionDate "2021.06.05"]
[SourceQuality "1"]
[TimeControl "40/100:0"]
[WhiteClock "0:15:06"]
[BlackClock "0:34:23"]

1. e4 {[%emt 0:00:00]} g6 {[%emt 0:00:00]} 2. d4 {[%emt 0:00:00]} Bg7 {[%emt 0:
00:00]} 3. Nc3 {[%emt 0:00:00]} d6 {[%emt 0:00:00]} 4. f4 {[%emt 0:00:00]} Nf6
{[%emt 0:00:00]} 5. Nf3 {[%emt 0:00:00]} O-O {[%emt 0:00:00]} 6. e5 {[%emt 0:
00:00]} dxe5 {[%emt 0:00:00]} 7. fxe5 {[%emt 0:00:00]} Nd5 {[%emt 0:00:00]} 8.
Bc4 {[%emt 0:00:00]} Nb6 {[%emt 0:00:00]} 9. Bb3 {[%emt 0:00:00]} Nc6 {[%emt 0:
00:00]} 10. O-O {[%emt 0:00:00]} Bg4 {[%emt 0:00:00]} 11. Be3 {[%emt 0:00:00]}
Na5 {[%emt 0:00:00]} 12. Qe2 {[%emt 0:00:00]} Nxb3 {[%emt 0:00:00]} 13. axb3 {
[%emt 0:00:00]} c6 {[%emt 0:00:00]} 14. h3 {[%emt 0:00:00]} Bf5 {[%emt 0:00:00]
} 15. Ng5 {[%emt 0:00:00]} Nd5 {[%emt 0:00:00]} 16. Nxd5 {[%emt 0:00:00]} cxd5
{[%emt 0:00:00]} 17. Rxf5 {[%emt 0:00:00]} gxf5 {[%emt 0:00:00]} 18. Qh5 {
[%emt 0:00:00]} h6 {[%emt 0:00:00]} 19. Nf3 {[%emt 0:00:00]} Qb6 {[%emt 0:08:
43]} 20. Nh4 e6 {[%emt 0:00:00]} 21. Nf3 {[%emt 1:11:19]} f6 22. Bxh6 Qc7 23.
Re1 fxe5 24. Rxe5 Rf6 25. Bg5 Qf7 26. Qxf7+ Rxf7 27. Rxe6 Rc8 28. c3 Rc6 29.
Re2 a5 30. Bd8 Ra6 31. Be7 Bf6 32. Bc5 a4 33. bxa4 Rxa4 34. Re8+ Kh7 35. Ba3
Ra6 36. Kf2 {[%emt 0:00:00]} Rb6 {[%emt 0:00:00]} 37. Ne5 {[%emt 0:00:00]} Rg7
{[%emt 0:00:00]} 38. g3 {[%emt 0:00:00]} Rg8 {[%emt 0:00:00]} 39. Rxg8 {
[%emt 0:00:00]} Kxg8 {[%emt 0:00:00]} 40. Kf3 {[%emt 0:00:00]} Bxe5 {[%emt 0:
00:00]} 41. dxe5 {[%emt 0:00:00]} Kf7 {[%emt 0:00:00]} 42. Kf4 {[%emt 0:00:00]}
Ke6 {[%emt 0:00:00]} 43. g4 {[%emt 0:00:00]} fxg4 {[%emt 0:00:00]} 44. hxg4 {
[%emt 0:00:00]} Rc6 {[%emt 0:00:00]} 45. Bd6 {[%emt 0:00:00]} Rc4+ {[%emt 0:00:
00]} 46. Kf3 {[%emt 0:00:00]} Re4 {[%emt 0:00:00]} 47. b3 {[%emt 0:00:00]} Re1
{[%emt 0:00:00]} 48. Bc5 {[%emt 0:00:00]} Rxe5 {[%emt 0:00:00]} 49. Bd4 {
[%emt 0:00:00]} Re1 {[%emt 0:00:00]} 50. Kf4 {[%emt 0:00:00]} b5 {[%emt 0:00:
00]} 51. b4 {[%emt 0:00:00]} Re2 {[%emt 0:00:00]} 52. Kg5 {[%emt 0:00:00]} Rg2
{[%emt 0:00:00]} 53. Kh5 {[%emt 0:00:00]} Rg3 {[%emt 0:00:00]} 54. Kg5 {
[%emt 0:00:00]} Rg2 {[%emt 0:00:50]} 1/2-1/2

[Event "Gibraltar Masters 18th"]
[Site "Gibraltar"]
[Date "2020.01.23"]
[Round "3.41"]
[White "Muzychuk, Anna"]
[Black "Mendonca, Leon Luke"]
[Result "1/2-1/2"]
[ECO "A18"]
[WhiteElo "2539"]
[BlackElo "2417"]
[PlyCount "119"]
[EventDate "2020.01.21"]
[EventType "swiss"]
[EventRounds "10"]
[EventCountry "GGB"]
[SourceTitle "BritBase"]
[Source "John Saunders"]
[SourceDate "2021.06.05"]
[SourceVersion "1"]
[SourceVersionDate "2021.06.05"]
[SourceQuality "1"]
[TimeControl "40/100:0"]
[WhiteClock "0:20:47"]
[BlackClock "0:26:11"]

1. c4 {[%emt 0:00:00]} Nf6 {[%emt 0:00:00]} 2. Nc3 {[%emt 0:00:00]} e6 {
[%emt 0:00:00]} 3. e4 {[%emt 0:00:00]} d5 {[%emt 0:00:00]} 4. e5 {[%emt 0:00:
00]} d4 {[%emt 0:00:00]} 5. exf6 {[%emt 0:00:00]} dxc3 {[%emt 0:00:00]} 6. bxc3
{[%emt 0:00:00]} Qxf6 {[%emt 0:00:00]} 7. d4 {[%emt 0:00:00]} e5 {[%emt 0:00:
00]} 8. Nf3 {[%emt 0:00:00]} Nc6 {[%emt 0:00:00]} 9. Be2 {[%emt 0:00:00]} exd4
{[%emt 0:00:00]} 10. Bg5 {[%emt 0:00:00]} Qg6 {[%emt 0:00:00]} 11. O-O {
[%emt 0:00:00]} dxc3 {[%emt 0:00:00]} 12. Bd3 {[%emt 0:00:00]} Qd6 {[%emt 0:00:
00]} 13. Re1+ {[%emt 0:00:00]} Be7 {[%emt 0:00:00]} 14. c5 {[%emt 0:00:00]}
Qxc5 {[%emt 0:00:00]} 15. Bxe7 {[%emt 0:00:00]} Nxe7 {[%emt 0:00:00]} 16. Re5 {
[%emt 0:00:00]} Qd6 {[%emt 0:51:19]} 17. Bb5+ Kf8 18. Qe2 f6 19. Re3 Bd7 20.
Bxd7 Qxd7 21. Nd4 Nd5 22. Ne6+ Kf7 23. Rd1 c2 24. Qxc2 Rhe8 25. Nf4 c6 26. Nxd5
cxd5 27. Qxh7 Rxe3 28. fxe3 Re8 29. Qh5+ Kg8 30. Rxd5 Qe6 31. Rd3 Rc8 32. a3
Qe4 33. Qd1 Rc5 34. h3 Kh7 35. Qd2 Re5 36. Rd7 Qxe3+ 37. Qxe3 Rxe3 38. Rxb7
Rxa3 39. Kf2 Kg6 40. Rc7 a6 41. Ra7 f5 42. Rc7 Kh6 43. Rf7 g6 44. Rf6 Kg5 45.
Rc6 a5 46. Ra6 Ra1 47. g3 a4 48. Kg2 a3 49. h4+ Kh5 50. Ra5 Kh6 51. Kh2 Kg7 52.
Ra6 Kf7 53. Kg2 a2 54. Ra7+ Ke6 55. Ra6+ Kd5 56. Ra5+ Kc4 57. Ra8 Kd3 58. Rd8+
Ke3 59. Re8+ Kd3 {[%emt 0:00:00]} 60. Rd8+ {[%emt 0:00:00]} 1/2-1/2

[Event "Gibraltar Masters 18th"]
[Site "Gibraltar"]
[Date "2020.01.23"]
[Round "3.42"]
[White "Zhou, Guijue"]
[Black "Bellahcene, Bilel"]
[Result "0-1"]
[ECO "C45"]
[WhiteElo "2193"]
[BlackElo "2536"]
[PlyCount "72"]
[EventDate "2020.01.21"]
[EventType "swiss"]
[EventRounds "10"]
[EventCountry "GGB"]
[SourceTitle "BritBase"]
[Source "John Saunders"]
[SourceDate "2021.06.05"]
[SourceVersion "1"]
[SourceVersionDate "2021.06.05"]
[SourceQuality "1"]
[TimeControl "40/100:0"]
[WhiteClock "0:19:38"]
[BlackClock "0:10:40"]

1. e4 {[%emt 0:00:00]} e5 {[%emt 0:00:00]} 2. Nf3 {[%emt 0:00:00]} Nc6 {
[%emt 0:00:00]} 3. d4 {[%emt 0:00:00]} exd4 {[%emt 0:00:00]} 4. Nxd4 {[%emt 0:
00:00]} Bc5 {[%emt 0:00:00]} 5. Be3 {[%emt 0:00:00]} Qf6 {[%emt 0:00:00]} 6. c3
{[%emt 0:00:00]} b6 {[%emt 0:00:00]} 7. g3 {[%emt 0:00:00]} Nge7 {[%emt 0:00:
00]} 8. Bg2 {[%emt 0:00:00]} Bb7 {[%emt 0:00:00]} 9. O-O {[%emt 0:00:00]} O-O-O
{[%emt 0:00:00]} 10. f4 {[%emt 0:00:00]} h5 {[%emt 0:00:00]} 11. Qd2 {[%emt 0:
00:00]} h4 {[%emt 0:00:00]} 12. g4 {[%emt 0:00:00]} h3 {[%emt 0:00:00]} 13. Bf3
{[%emt 0:00:00]} g5 {[%emt 0:00:00]} 14. fxg5 {[%emt 0:00:00]} Qg6 {[%emt 0:00:
00]} 15. b4 {[%emt 0:00:00]} Bd6 {[%emt 0:00:00]} 16. Nf5 {[%emt 0:00:00]} Kb8
{[%emt 0:00:00]} 17. Na3 {[%emt 0:00:00]} Ne5 18. Nxd6 cxd6 19. Bf4 Nc8 20.
Bxe5 dxe5 21. Nc4 d6 22. Qe3 Rh4 {[%emt 0:00:00]} 23. a4 {[%emt 0:00:00]} Bxe4
24. Qxe4 Qxe4 {[%emt 0:00:00]} 25. Bxe4 {[%emt 0:00:00]} Rxg4+ {[%emt 0:00:00]}
26. Kf2 {[%emt 0:00:00]} Rxe4 {[%emt 0:00:00]} 27. Nd2 {[%emt 0:00:00]} Rg4 {
[%emt 0:00:00]} 28. Rg1 {[%emt 0:00:00]} Rf4+ {[%emt 0:00:00]} 29. Kg3 {
[%emt 0:00:00]} Ne7 {[%emt 0:00:00]} 30. Raf1 {[%emt 0:00:00]} Nf5+ {[%emt 0:
00:00]} 31. Kxh3 {[%emt 0:00:00]} Rh8+ {[%emt 0:00:00]} 32. Kg2 {[%emt 0:00:00]
} Ne3+ {[%emt 0:00:00]} 33. Kg3 {[%emt 0:00:00]} Rg4+ {[%emt 0:00:00]} 34. Kf2
{[%emt 0:00:00]} Nxf1 {[%emt 0:00:00]} 35. Rxg4 {[%emt 0:00:00]} Nxd2 {[%emt 0:
00:00]} 36. h4 {[%emt 0:00:00]} d5 {[%emt 0:00:00]} 0-1

[Event "Gibraltar Masters 18th"]
[Site "Gibraltar"]
[Date "2020.01.23"]
[Round "3.43"]
[White "Tabatabaei, M.Amin"]
[Black "Dolzhikova, Olga"]
[Result "1-0"]
[ECO "B06"]
[WhiteElo "2638"]
[BlackElo "2123"]
[PlyCount "81"]
[EventDate "2020.01.21"]
[EventType "swiss"]
[EventRounds "10"]
[EventCountry "GGB"]
[SourceTitle "BritBase"]
[Source "John Saunders"]
[SourceDate "2021.06.05"]
[SourceVersion "1"]
[SourceVersionDate "2021.06.05"]
[SourceQuality "1"]
[TimeControl "40/100:0"]
[WhiteClock "0:32:06"]
[BlackClock "0:02:09"]

1. e4 {[%emt 0:00:00]} g6 {[%emt 0:00:00]} 2. d4 {[%emt 0:00:00]} Bg7 {[%emt 0:
00:00]} 3. Nc3 {[%emt 0:00:00]} d5 {[%emt 0:00:00]} 4. Nxd5 {[%emt 0:00:00]} c6
{[%emt 0:00:00]} 5. Ne3 {[%emt 0:00:00]} Qxd4 {[%emt 0:00:00]} 6. Qxd4 {
[%emt 0:00:00]} Bxd4 {[%emt 0:00:00]} 7. a4 {[%emt 0:00:00]} Nd7 {[%emt 0:00:
00]} 8. Nc4 {[%emt 0:00:00]} Bg7 {[%emt 0:00:00]} 9. f3 {[%emt 0:00:00]} Ne5 {
[%emt 0:00:00]} 10. c3 {[%emt 0:00:00]} Be6 {[%emt 0:00:00]} 11. Nxe5 {[%emt 0:
00:00]} Bxe5 {[%emt 0:00:00]} 12. Be3 {[%emt 0:00:00]} Bg7 {[%emt 0:00:00]} 13.
h4 {[%emt 0:00:00]} h5 {[%emt 0:00:00]} 14. Nh3 {[%emt 0:00:00]} f6 {[%emt 0:
00:00]} 15. a5 {[%emt 0:00:00]} Bf7 {[%emt 0:00:00]} 16. Ra4 {[%emt 0:00:00]}
a6 {[%emt 0:00:00]} 17. Nf2 {[%emt 0:00:00]} e5 18. Nd3 Bf8 19. Bc5 Bh6 20. Kf2
O-O-O 21. g3 Bb3 22. Rb4 Bc2 23. Ne1 Rd2+ 24. Kg1 Bb1 25. Rh2 Rd1 26. Re2 Bd2
27. Kf2 Nh6 28. Bh3+ Kb8 {[%emt 0:00:00]} 29. Be6 Rd8 {[%emt 0:00:00]} 30. Bb3
{[%emt 0:00:00]} Bxe1+ {[%emt 0:00:00]} 31. Rxe1 {[%emt 0:00:00]} Rxe1 {
[%emt 0:00:07]} 32. Kxe1 {[%emt 0:00:00]} f5 {[%emt 0:00:00]} 33. Be3 {[%emt 0:
00:00]} Rh8 {[%emt 0:00:00]} 34. Bc5 {[%emt 0:00:00]} fxe4 {[%emt 0:00:00]} 35.
fxe4 {[%emt 0:00:00]} Ng4 {[%emt 0:00:00]} 36. Bf7 {[%emt 0:00:00]} Nf6 {
[%emt 0:00:36]} 37. Bd6+ {[%emt 0:00:00]} Ka8 {[%emt 0:00:00]} 38. Bxe5 {
[%emt 0:00:00]} Rf8 {[%emt 0:00:00]} 39. Bxg6 {[%emt 0:00:00]} Nxe4 {[%emt 0:
00:00]} 40. Bxe4 {[%emt 0:00:00]} Re8 {[%emt 0:00:00]} 41. Bxb1 {[%emt 0:00:00]
} 1-0